fUSD/lending_fUSD_20260607
["ID","MTS","AMOUNT","RATE_DAILY","PERIOD"]
[424319166,1780768254000,-500.0,0.00019,2]
[424319146,1780768254000,-194.712125,0.00019,2]
[424319149,1780768254000,-374.665694,0.00019,2]
[424319124,1780768254000,-3541.00338417,0.00019,2]
[424319120,1780768254000,-500.0,0.00018999,2]
[424319123,1780768254000,-6326.00199692,0.00019,2]
[424319122,1780768254000,-324.66255205,0.00018999,2]
[424319126,1780768254000,-151.0,0.00019,2]
[424319128,1780768254000,-151.0,0.00019,2]
[424319125,1780768254000,-400399.81791939,0.00019,2]
[424319129,1780768254000,-151.0,0.00019,2]
[424319131,1780768254000,-151.0,0.00019,2]
[424319134,1780768254000,-151.0,0.00019,2]
[424319130,1780768254000,-151.0,0.00019,2]
[424319132,1780768254000,-151.0,0.00019,2]
[424319133,1780768254000,-151.0,0.00019,2]
[424319127,1780768254000,-151.0,0.00019,2]
[424319135,1780768254000,-151.0,0.00019,2]
[424319150,1780768254000,-374.665694,0.00019,2]
[424319148,1780768254000,-374.665694,0.00019,2]
[424319142,1780768254000,-273.641047,0.00019,2]
[424319144,1780768254000,-194.712125,0.00019,2]
[424319143,1780768254000,-194.712125,0.00019,2]
[424319141,1780768254000,-151.0,0.00019,2]
[424319147,1780768254000,-374.665694,0.00019,2]
[424319139,1780768254000,-151.0,0.00019,2]
[424319138,1780768254000,-151.0,0.00019,2]
[424319137,1780768254000,-151.0,0.00019,2]
[424319136,1780768254000,-151.0,0.00019,2]
[424319140,1780768254000,-151.0,0.00019,2]
[424319222,1780768255000,-2438.10380057,0.000195,2]
[424319218,1780768255000,-151.0,0.00019417,2]
[424319216,1780768255000,-225.18697532,0.00019417,2]
[424319226,1780768255000,-156.587,0.0001969,2]
[424319220,1780768255000,-3577.39912719,0.000195,2]
[424319228,1780768255000,-217.15233878,0.0001969,2]
[424319210,1780768255000,-1536.04360648,0.00019417,2]
[424319217,1780768255000,-2236.95670847,0.00019417,2]
[424319208,1780768255000,-187.78006524,0.00019417,2]
[424319212,1780768255000,-200.0,0.00019417,2]
[424319207,1780768255000,-151.0,0.00019417,2]
[424319211,1780768255000,-200.0,0.00019417,2]
[424319227,1780768255000,-160.0,0.0001969,2]
[424319219,1780768255000,-151.0,0.00019417,2]
[424319238,1780768255000,-650.0,0.00019752,2]
[424319223,1780768255000,-10232.05744396,0.000195,2]
[424319225,1780768255000,-2000.0,0.00019591,2]
[424319224,1780768255000,-500.0,0.00019591,2]
[424319229,1780768255000,-3577.39912719,0.000197,2]
[424319231,1780768255000,-2438.10380057,0.000197,2]
[424319232,1780768255000,-10232.05744396,0.000197,2]
[424319233,1780768255000,-163.01856506,0.00019706,2]
[424319234,1780768255000,-163.01856506,0.00019706,2]
[424319241,1780768255000,-650.0,0.00019752,2]
[424319236,1780768255000,-214.0,0.00019744,2]
[424319240,1780768255000,-650.0,0.00019752,2]
[424319230,1780768255000,-1802.4876194,0.000197,2]
[424319239,1780768255000,-650.0,0.00019752,2]
[424319209,1780768255000,-745.65223615,0.00019417,2]
[424319221,1780768255000,-1802.4876194,0.000195,2]
[424319203,1780768255000,-2438.10380057,0.000193,2]
[424319179,1780768255000,-505.862562,0.00019,2]
[424319206,1780768255000,-225.18697532,0.00019417,2]
[424319180,1780768255000,-1830.1760119,0.00019,2]
[424319182,1780768255000,-3577.39912719,0.000191,2]
[424319235,1780768255000,-1125.0,0.00019706,2]
[424319181,1780768255000,-2000.0,0.00019052,7]
[424319178,1780768255000,-500.0,0.00019,2]
[424319188,1780768255000,-151.0,0.00019178,2]
[424319184,1780768255000,-2438.10380057,0.000191,2]
[424319185,1780768255000,-10232.05744396,0.000191,2]
[424319189,1780768255000,-151.0,0.00019178,2]
[424319187,1780768255000,-839.06718577,0.00019178,2]
[424319190,1780768255000,-151.0,0.00019178,2]
[424319183,1780768255000,-1802.4876194,0.000191,2]
[424319186,1780768255000,-500.0,0.00019177,2]
[424319192,1780768255000,-192.967881,0.00019178,2]
[424319200,1780768255000,-20453.62,0.00019178,2]
[424319201,1780768255000,-3577.39912719,0.000193,2]
[424319193,1780768255000,-192.967881,0.00019178,2]
[424319199,1780768255000,-342.548366,0.00019178,2]
[424319191,1780768255000,-151.0,0.00019178,2]
[424319196,1780768255000,-342.548366,0.00019178,2]
[424319202,1780768255000,-1802.4876194,0.000193,2]
[424319197,1780768255000,-342.548366,0.00019178,2]
[424319194,1780768255000,-192.967881,0.00019178,2]
[424319195,1780768255000,-192.967881,0.00019178,2]
[424319198,1780768255000,-342.548366,0.00019178,2]
[424319204,1780768255000,-10232.05744396,0.000193,2]
[424319213,1780768255000,-10272.10520532,0.00019417,2]
[424319215,1780768255000,-225.18697532,0.00019417,2]
[424319214,1780768255000,-500.0,0.00019417,2]
[424319205,1780768255000,-1408.35,0.000193,2]
[424319237,1780768255000,-650.0,0.00019752,2]
[424319252,1780768255000,-250.0,0.00019753,2]
[424319251,1780768255000,-250.0,0.00019753,2]
[424319275,1780768255000,-33685.16,0.00019968,2]
[424319276,1780768255000,-528.80335089,0.00019999,15]
[424319282,1780768255000,-1587.33,0.0002,2]
[424319280,1780768255000,-599.999999,0.0002,2]
[424319284,1780768255000,-468.0,0.0002,2]
[424319287,1780768255000,-675.0,0.0002,2]
[424319286,1780768255000,-1092.0,0.0002,2]
[424319288,1780768255000,-2972.0,0.0002,2]
[424319285,1780768255000,-1995.41551638,0.0002,2]
[424319283,1780768255000,-213.55,0.0002,2]
[424319281,1780768255000,-1042.263907,0.0002,2]
[424319291,1780768255000,-585.0,0.0002,2]
[424319292,1780768255000,-4082.0,0.0002,2]
[424319293,1780768255000,-706.0,0.0002,2]
[424319273,1780768255000,-215.72837767,0.00019968,2]
[424319290,1780768255000,-948.0,0.0002,2]
[424319294,1780768255000,-800.0,0.0002,2]
[424319296,1780768255000,-4288.0,0.0002,2]
[424319297,1780768255000,-400.0,0.0002,2]
[424319303,1780768255000,-3523.68,0.0002,2]
[424319299,1780768255000,-1747.0,0.0002,2]
[424319242,1780768255000,-650.0,0.00019752,2]
[424319307,1780768255000,-3523.72,0.0002,2]
[424319306,1780768255000,-3523.68,0.0002,2]
[424319298,1780768255000,-801.0,0.0002,2]
[424319300,1780768255000,-151.0,0.0002,2]
[424319295,1780768255000,-3509.0,0.0002,2]
[424319305,1780768255000,-3523.68,0.0002,2]
[424319304,1780768255000,-3523.68,0.0002,2]
[424319302,1780768255000,-218.85433803,0.0002,2]
[424319289,1780768255000,-4110.0,0.0002,2]
[424319277,1780768255000,-986.0,0.0002,2]
[424319301,1780768255000,-408.0,0.0002,2]
[424319274,1780768255000,-215.72837767,0.00019968,2]
[424319271,1780768255000,-151.0,0.00019965,2]
[424319243,1780768255000,-650.0,0.00019752,2]
[424319245,1780768255000,-650.0,0.00019752,2]
[424319253,1780768255000,-250.0,0.00019753,2]
[424319248,1780768255000,-250.0,0.00019753,2]
[424319247,1780768255000,-250.0,0.00019753,2]
[424319250,1780768255000,-250.0,0.00019753,2]
[424319249,1780768255000,-250.0,0.00019753,2]
[424319246,1780768255000,-412.0,0.00019752,2]
[424319254,1780768255000,-250.0,0.00019753,2]
[424319257,1780768255000,-1146.72507585,0.000199,3]
[424319256,1780768255000,-35866.50881551,0.00019865,2]
[424319255,1780768255000,-213.0,0.00019753,2]
[424319258,1780768255000,-10232.05744396,0.000199,2]
[424319244,1780768255000,-650.0,0.00019752,2]
[424319263,1780768255000,-1592.87721992,0.00019965,2]
[424319265,1780768255000,-200.0,0.00019965,2]
[424319270,1780768255000,-233.5188934,0.00019965,2]
[424319269,1780768255000,-2319.72410669,0.00019965,2]
[424319272,1780768255000,-151.0,0.00019965,2]
[424319279,1780768255000,-1317.0,0.0002,2]
[424319268,1780768255000,-233.5188934,0.00019965,2]
[424319267,1780768255000,-500.0,0.00019965,2]
[424319261,1780768255000,-194.72792766,0.00019965,2]
[424319262,1780768255000,-773.24136889,0.00019965,2]
[424319266,1780768255000,-10652.17309792,0.00019965,2]
[424319259,1780768255000,-233.5188934,0.00019965,2]
[424319260,1780768255000,-151.0,0.00019965,2]
[424319278,1780768255000,-766.0,0.0002,2]
[424319264,1780768255000,-200.0,0.00019965,2]
[424319340,1780768256000,-242.15909246,0.00020513,2]
[424319348,1780768256000,-950.0,0.00020628,2]
[424319344,1780768256000,-151.0,0.00020513,2]
[424319347,1780768256000,-950.0,0.00020628,2]
[424319346,1780768256000,-950.0,0.00020628,2]
[424319336,1780768256000,-200.0,0.00020513,2]
[424319337,1780768256000,-200.0,0.00020513,2]
[424319331,1780768256000,-242.15909246,0.00020513,2]
[424319345,1780768256000,-1995.41551638,0.000206,2]
[424319338,1780768256000,-11046.30350254,0.00020513,2]
[424319360,1780768256000,-1408.35,0.000209,2]
[424319342,1780768256000,-2405.55389863,0.00020513,2]
[424319339,1780768256000,-500.0,0.00020513,2]
[424319343,1780768256000,-151.0,0.00020513,2]
[424319350,1780768256000,-950.0,0.00020628,2]
[424319362,1780768256000,-18577.25556588,0.00021,2]
[424319361,1780768256000,-1065.5548339,0.00020911,2]
[424319349,1780768256000,-950.0,0.00020628,2]
[424319351,1780768256000,-950.0,0.00020628,2]
[424319352,1780768256000,-950.0,0.00020628,2]
[424319332,1780768256000,-151.0,0.00020513,2]
[424319341,1780768256000,-242.15909246,0.00020513,2]
[424319326,1780768256000,-10232.05744396,0.000203,2]
[424319320,1780768256000,-1110.09996919,0.00020184,2]
[424319325,1780768256000,-171.0,0.00020261,2]
[424319354,1780768256000,-950.0,0.00020628,2]
[424319309,1780768256000,-1006.76,0.0002,2]
[424319311,1780768256000,-1006.76,0.0002,2]
[424319308,1780768256000,-1006.76,0.0002,2]
[424319314,1780768256000,-979.41,0.00020055,2]
[424319315,1780768256000,-287.58292716,0.00020055,2]
[424319313,1780768256000,-14910.11,0.0002,2]
[424319310,1780768256000,-1006.76,0.0002,2]
[424319312,1780768256000,-1006.8,0.0002,2]
[424319318,1780768256000,-829.19582427,0.000201,2]
[424319329,1780768256000,-10232.05744396,0.000205,2]
[424319317,1780768256000,-10232.05744396,0.000201,2]
[424319316,1780768256000,-469.09,0.00020063,2]
[424319321,1780768256000,-1995.41551638,0.000202,2]
[424319323,1780768256000,-270.72301952,0.00020208,7]
[424319333,1780768256000,-201.93286098,0.00020513,2]
[424319334,1780768256000,-801.85129954,0.00020513,2]
[424319335,1780768256000,-1651.81367706,0.00020513,2]
[424319330,1780768256000,-759.43,0.000205,7]
[424319322,1780768256000,-172.0,0.00020202,2]
[424319328,1780768256000,-1995.41551638,0.000204,2]
[424319327,1780768256000,-4581.8,0.00020381,2]
[424319319,1780768256000,-165.83916485,0.000201,2]
[424319358,1780768256000,-1995.41551638,0.000208,2]
[424319324,1780768256000,-150.0,0.00020261,2]
[424319353,1780768256000,-950.0,0.00020628,2]
[424319386,1780768256000,-747.80937859,0.0002106,2]
[424319383,1780768256000,-160.0,0.00021059,2]
[424319384,1780768256000,-225.18697532,0.00021059,2]
[424319390,1780768256000,-831.51979762,0.00021061,2]
[424319387,1780768256000,-251.11897888,0.00021061,2]
[424319391,1780768256000,-1712.93078311,0.00021061,2]
[424319392,1780768256000,-200.0,0.00021061,2]
[424319393,1780768256000,-200.0,0.00021061,2]
[424319394,1780768256000,-11455.01673214,0.00021061,2]
[424319396,1780768256000,-251.11897888,0.00021061,2]
[424319408,1780768256000,-5000.0,0.00021175,2]
[424319397,1780768256000,-2494.55939288,0.00021061,2]
[424319398,1780768256000,-251.11897888,0.00021061,2]
[424319399,1780768256000,-151.0,0.00021061,2]
[424319402,1780768256000,-180.0,0.00021067,2]
[424319401,1780768256000,-168.85045756,0.00021067,2]
[424319404,1780768256000,-151.0,0.00021145,2]
[424319403,1780768256000,-10232.05744396,0.000211,2]
[424319405,1780768256000,-151.0,0.00021175,2]
[424319407,1780768256000,-5000.0,0.00021175,2]
[424319406,1780768256000,-151.0,0.00021175,2]
[424319355,1780768256000,-844.0,0.00020628,2]
[424319395,1780768256000,-500.0,0.00021061,2]
[424319382,1780768256000,-162.380719,0.00021059,2]
[424319400,1780768256000,-151.0,0.00021061,2]
[424319389,1780768256000,-209.40437684,0.00021061,2]
[424319385,1780768256000,-599.60298507,0.0002106,2]
[424319357,1780768256000,-1125.0,0.00020743,2]
[424319359,1780768256000,-10232.05744396,0.000209,2]
[424319356,1780768256000,-10232.05744396,0.000207,2]
[424319364,1780768256000,-15000.0,0.00021,2]
[424319374,1780768256000,-585.0,0.00021,2]
[424319376,1780768256000,-706.0,0.00021,2]
[424319363,1780768256000,-1042.263907,0.00021,2]
[424319375,1780768256000,-4082.0,0.00021,2]
[424319367,1780768256000,-2298.58001474,0.00021,2]
[424319368,1780768256000,-1995.41551638,0.00021,2]
[424319373,1780768256000,-948.0,0.00021,2]
[424319366,1780768256000,-468.0,0.00021,2]
[424319372,1780768256000,-4110.0,0.00021,2]
[424319380,1780768256000,-1747.0,0.00021,2]
[424319379,1780768256000,-801.0,0.00021,2]
[424319388,1780768256000,-151.0,0.00021061,2]
[424319377,1780768256000,-800.0,0.00021,2]
[424319381,1780768256000,-408.0,0.00021,2]
[424319369,1780768256000,-1092.0,0.00021,2]
[424319371,1780768256000,-2972.0,0.00021,2]
[424319365,1780768256000,-6111.0,0.00021,2]
[424319370,1780768256000,-675.0,0.00021,2]
[424319378,1780768256000,-4288.0,0.00021,2]
[424319426,1780768257000,-167.83742797,0.00021418,2]
[424319428,1780768257000,-1027.7,0.00021461,2]
[424319430,1780768257000,-2298.58001474,0.000216,2]
[424319432,1780768257000,-151.0,0.00021609,2]
[424319431,1780768257000,-260.4103811,0.00021609,2]
[424319433,1780768257000,-217.15233878,0.00021609,2]
[424319434,1780768257000,-862.28603014,0.00021609,2]
[424319444,1780768257000,-151.0,0.00021609,2]
[424319435,1780768257000,-1776.30922209,0.00021609,2]
[424319436,1780768257000,-200.0,0.00021609,2]
[424319438,1780768257000,-11878.85235123,0.00021609,2]
[424319442,1780768257000,-260.4103811,0.00021609,2]
[424319441,1780768257000,-2586.85809042,0.00021609,2]
[424319429,1780768257000,-10232.05744396,0.000215,2]
[424319443,1780768257000,-151.0,0.00021609,2]
[424319437,1780768257000,-200.0,0.00021609,2]
[424319427,1780768257000,-167.83742797,0.00021418,2]
[424319415,1780768257000,-5000.0,0.00021175,2]
[424319424,1780768257000,-2298.58001474,0.000214,2]
[424319439,1780768257000,-500.0,0.00021609,2]
[424319409,1780768257000,-5000.0,0.00021175,2]
[424319411,1780768257000,-5000.0,0.00021175,2]
[424319412,1780768257000,-5000.0,0.00021175,2]
[424319410,1780768257000,-5000.0,0.00021175,2]
[424319414,1780768257000,-5000.0,0.00021175,2]
[424319413,1780768257000,-5000.0,0.00021175,2]
[424319417,1780768257000,-2298.58001474,0.000212,2]
[424319416,1780768257000,-5000.0,0.00021175,2]
[424319419,1780768257000,-10232.05744396,0.000213,2]
[424319421,1780768257000,-154.061512,0.000213,2]
[424319418,1780768257000,-1995.41551638,0.000212,2]
[424319420,1780768257000,-151.0,0.000213,2]
[424319423,1780768257000,-2000.0,0.00021379,7]
[424319422,1780768257000,-1708.05,0.0002137,2]
[424319425,1780768257000,-1995.41551638,0.000214,2]
[424319448,1780768257000,-265.36082923,0.00021708,2]
[424319440,1780768257000,-260.4103811,0.00021609,2]
[424319447,1780768257000,-10232.05744396,0.000217,2]
[424319466,1780768257000,-242.339104,0.00021918,2]
[424319469,1780768257000,-1601.735642,0.00021918,2]
[424319472,1780768257000,-150.0,0.00021918,2]
[424319468,1780768257000,-1601.735642,0.00021918,2]
[424319470,1780768257000,-1601.735642,0.00021918,2]
[424319471,1780768257000,-1601.735642,0.00021918,2]
[424319473,1780768257000,-200.0,0.00021918,2]
[424319467,1780768257000,-5000.0,0.00021918,2]
[424319474,1780768257000,-1042.263907,0.00022,2]
[424319477,1780768257000,-675.0,0.00022,2]
[424319479,1780768257000,-4110.0,0.00022,2]
[424319480,1780768257000,-948.0,0.00022,2]
[424319478,1780768257000,-2972.0,0.00022,2]
[424319475,1780768257000,-468.0,0.00022,2]
[424319446,1780768257000,-1995.41551638,0.000217,2]
[424319481,1780768257000,-585.0,0.00022,2]
[424319476,1780768257000,-1092.0,0.00022,2]
[424319465,1780768257000,-154.054209,0.00021918,2]
[424319482,1780768257000,-4082.0,0.00022,2]
[424319463,1780768257000,-10232.05744396,0.000219,2]
[424319464,1780768257000,-151.0,0.00021918,2]
[424319450,1780768257000,-350.0,0.00021816,2]
[424319449,1780768257000,-1125.0,0.00021781,2]
[424319445,1780768257000,-14910.11,0.00021694,2]
[424319452,1780768257000,-350.0,0.00021816,2]
[424319455,1780768257000,-350.0,0.00021816,2]
[424319456,1780768257000,-350.0,0.00021816,2]
[424319451,1780768257000,-350.0,0.00021816,2]
[424319457,1780768257000,-350.0,0.00021816,2]
[424319458,1780768257000,-350.0,0.00021816,2]
[424319453,1780768257000,-350.0,0.00021816,2]
[424319459,1780768257000,-350.0,0.00021816,2]
[424319461,1780768257000,-2298.58001474,0.000219,2]
[424319460,1780768257000,-169.0,0.00021816,2]
[424319454,1780768257000,-350.0,0.00021816,2]
[424319462,1780768257000,-1995.41551638,0.000219,2]
[424319531,1780768258000,-280.03725111,0.00022705,2]
[424319521,1780768258000,-2298.58001474,0.000225,2]
[424319517,1780768258000,-233.5188934,0.00022428,2]
[424319514,1780768258000,-1408.35,0.000224,7]
[424319519,1780768258000,-726.3,0.00022466,2]
[424319515,1780768258000,-168.3888056,0.00022428,2]
[424319516,1780768258000,-187.4024643,0.00022428,2]
[424319508,1780768258000,-2298.58001474,0.000223,2]
[424319523,1780768258000,-10232.05744396,0.000226,2]
[424319512,1780768258000,-1012.01286119,0.00022392,2]
[424319518,1780768258000,-1584.91,0.00022466,2]
[424319532,1780768258000,-151.0,0.00022705,2]
[424319529,1780768258000,-398.0,0.00022609,7]
[424319525,1780768258000,-315.0,0.000226,2]
[424319538,1780768258000,-500.0,0.00022705,2]
[424319522,1780768258000,-373.71389898,0.00022554,2]
[424319524,1780768258000,-1000.0,0.000226,2]
[424319526,1780768258000,-200.0,0.000226,2]
[424319528,1780768258000,-168.33,0.00022603,2]
[424319527,1780768258000,-309.0,0.000226,2]
[424319530,1780768258000,-2298.58001474,0.000227,2]
[424319533,1780768258000,-233.5188934,0.00022705,2]
[424319535,1780768258000,-200.0,0.00022705,2]
[424319537,1780768258000,-200.0,0.00022705,2]
[424319513,1780768258000,-10232.05744396,0.000224,2]
[424319520,1780768258000,-1525.66,0.00022466,2]
[424319511,1780768258000,-500.0,0.00022392,2]
[424319490,1780768258000,-2968.11,0.00022,2]
[424319510,1780768258000,-902.85,0.0002239,7]
[424319541,1780768258000,-280.03725111,0.00022705,2]
[424319483,1780768258000,-706.0,0.00022,2]
[424319484,1780768258000,-800.0,0.00022,2]
[424319485,1780768258000,-4288.0,0.00022,2]
[424319487,1780768258000,-801.0,0.00022,2]
[424319486,1780768258000,-450.0,0.00022,2]
[424319488,1780768258000,-1747.0,0.00022,2]
[424319493,1780768258000,-151.0,0.00022157,2]
[424319489,1780768258000,-408.0,0.00022,2]
[424319492,1780768258000,-270.0455652,0.00022157,2]
[424319494,1780768258000,-225.18697532,0.00022157,2]
[424319495,1780768258000,-894.19061325,0.00022157,2]
[424319491,1780768258000,-2298.58001474,0.000221,2]
[424319497,1780768258000,-200.0,0.00022157,2]
[424319507,1780768258000,-200.0,0.00022292,2]
[424319498,1780768258000,-12318.36988822,0.00022157,2]
[424319504,1780768258000,-151.0,0.00022157,2]
[424319500,1780768258000,-500.0,0.00022157,2]
[424319502,1780768258000,-2682.57183977,0.00022157,2]
[424319503,1780768258000,-270.0455652,0.00022157,2]
[424319499,1780768258000,-200.0,0.00022157,2]
[424319496,1780768258000,-1842.0326633,0.00022157,2]
[424319501,1780768258000,-270.0455652,0.00022157,2]
[424319505,1780768258000,-151.0,0.00022157,2]
[424319506,1780768258000,-10232.05744396,0.000222,2]
[424319509,1780768258000,-4581.8,0.00022353,2]
[424319543,1780768258000,-151.0,0.00022705,2]
[424319567,1780768258000,-151.0,0.00022809,2]
[424319534,1780768258000,-1910.18787185,0.00022705,2]
[424319568,1780768258000,-151.0,0.00022809,2]
[424319571,1780768258000,-3554.0,0.00022809,2]
[424319572,1780768258000,-382.0,0.00022809,2]
[424319576,1780768258000,-3642.0,0.00022809,2]
[424319575,1780768258000,-6073.0,0.00022809,2]
[424319574,1780768258000,-933.0,0.00022809,2]
[424319578,1780768258000,-1125.0,0.0002287,2]
[424319577,1780768258000,-346.10789519,0.00022869,2]
[424319579,1780768258000,-151.0,0.00022997,7]
[424319585,1780768258000,-675.0,0.00023,2]
[424319582,1780768258000,-468.0,0.00023,2]
[424319584,1780768258000,-1092.0,0.00023,2]
[424319580,1780768258000,-1000.23409663,0.00023,2]
[424319583,1780768258000,-2298.58001474,0.00023,2]
[424319581,1780768258000,-1042.263907,0.00023,2]
[424319586,1780768258000,-2972.0,0.00023,2]
[424319588,1780768258000,-948.0,0.00023,2]
[424319590,1780768258000,-4082.0,0.00023,2]
[424319593,1780768258000,-4288.0,0.00023,2]
[424319591,1780768258000,-706.0,0.00023,2]
[424319592,1780768258000,-800.0,0.00023,2]
[424319589,1780768258000,-585.0,0.00023,2]
[424319594,1780768258000,-801.0,0.00023,2]
[424319595,1780768258000,-1747.0,0.00023,2]
[424319536,1780768258000,-5333.73533212,0.00022705,2]
[424319570,1780768258000,-165.347,0.00022809,2]
[424319569,1780768258000,-1358.0,0.00022809,2]
[424319587,1780768258000,-4110.0,0.00023,2]
[424319566,1780768258000,-1601.735642,0.00022809,2]
[424319542,1780768258000,-151.0,0.00022705,2]
[424319573,1780768258000,-1227.0,0.00022809,2]
[424319539,1780768258000,-280.03725111,0.00022705,2]
[424319540,1780768258000,-2781.82699784,0.00022705,2]
[424319555,1780768258000,-195.226,0.00022737,2]
[424319545,1780768258000,-150.0,0.00022737,2]
[424319546,1780768258000,-220.0,0.00022737,2]
[424319544,1780768258000,-200.0,0.00022737,2]
[424319547,1780768258000,-250.0,0.00022737,2]
[424319549,1780768258000,-247.689,0.00022737,2]
[424319553,1780768258000,-246.38,0.00022737,2]
[424319550,1780768258000,-242.103,0.00022737,2]
[424319552,1780768258000,-167.5,0.00022737,2]
[424319551,1780768258000,-250.0,0.00022737,2]
[424319564,1780768258000,-1601.735642,0.00022809,2]
[424319565,1780768258000,-1601.735642,0.00022809,2]
[424319548,1780768258000,-208.631,0.00022737,2]
[424319561,1780768258000,-225.0,0.00022753,2]
[424319562,1780768258000,-10232.05744396,0.000228,2]
[424319563,1780768258000,-1601.735642,0.00022809,2]
[424319558,1780768258000,-247.366,0.00022737,2]
[424319560,1780768258000,-150.0,0.00022753,2]
[424319557,1780768258000,-189.0,0.00022737,2]
[424319556,1780768258000,-167.462,0.00022737,2]
[424319554,1780768258000,-250.0,0.00022737,2]
[424319559,1780768258000,-150.0,0.00022753,2]
[424319629,1780768259000,-200.0,0.00023801,2]
[424319645,1780768259000,-706.0,0.00024,2]
[424319631,1780768259000,-2991.49051684,0.00023801,2]
[424319630,1780768259000,-500.0,0.00023801,2]
[424319628,1780768259000,-200.0,0.00023801,2]
[424319634,1780768259000,-151.0,0.00023801,2]
[424319626,1780768259000,-251.11897888,0.00023801,2]
[424319623,1780768259000,-775.4783256,0.00023799,2]
[424319624,1780768259000,-301.14337869,0.00023801,2]
[424319637,1780768259000,-468.0,0.00024,2]
[424319627,1780768259000,-2054.15682156,0.00023801,2]
[424319636,1780768259000,-1042.263907,0.00024,2]
[424319650,1780768259000,-1747.0,0.00024,2]
[424319638,1780768259000,-1092.0,0.00024,2]
[424319646,1780768259000,-800.0,0.00024,2]
[424319644,1780768259000,-4082.0,0.00024,2]
[424319643,1780768259000,-585.0,0.00024,2]
[424319641,1780768259000,-4110.0,0.00024,2]
[424319640,1780768259000,-2972.0,0.00024,2]
[424319642,1780768259000,-948.0,0.00024,2]
[424319648,1780768259000,-500.0,0.00024,2]
[424319647,1780768259000,-4288.0,0.00024,2]
[424319649,1780768259000,-801.0,0.00024,2]
[424319651,1780768259000,-408.0,0.00024,2]
[424319625,1780768259000,-151.0,0.00023801,2]
[424319639,1780768259000,-675.0,0.00024,2]
[424319635,1780768259000,-200.0,0.00023837,2]
[424319596,1780768259000,-408.0,0.00023,2]
[424319632,1780768259000,-301.14337869,0.00023801,2]
[424319599,1780768259000,-151.0,0.00023,2]
[424319597,1780768259000,-151.0,0.00023,2]
[424319598,1780768259000,-151.0,0.00023,2]
[424319601,1780768259000,-200.0,0.00023065,2]
[424319600,1780768259000,-875.77,0.00023062,7]
[424319603,1780768259000,-290.3986294,0.00023253,2]
[424319608,1780768259000,-200.0,0.00023253,2]
[424319606,1780768259000,-1980.8648231,0.00023253,2]
[424319605,1780768259000,-242.15909246,0.00023253,2]
[424319604,1780768259000,-151.0,0.00023253,2]
[424319602,1780768259000,-10232.05744396,0.000231,2]
[424319607,1780768259000,-200.0,0.00023253,2]
[424319633,1780768259000,-151.0,0.00023801,2]
[424319609,1780768259000,-500.0,0.00023253,2]
[424319611,1780768259000,-2884.75459676,0.00023253,2]
[424319615,1780768259000,-500.0,0.0002326,2]
[424319613,1780768259000,-151.0,0.00023253,2]
[424319614,1780768259000,-151.0,0.00023253,2]
[424319620,1780768259000,-174.61919141,0.00023797,2]
[424319617,1780768259000,-14910.11,0.00023388,7]
[424319621,1780768259000,-242.15909246,0.00023797,2]
[424319612,1780768259000,-290.3986294,0.00023253,2]
[424319618,1780768259000,-196.93,0.00023425,2]